[Event "*** Titled Tuesday Blitz"]
[Site "Chess.com"]
[Date "2021.02.16"]
[Round "6"]
[White "Chessbard1972"]
[Black "esteban062000"]
[Result "0-1"]
[WhiteElo "2336"]
[BlackElo "2163"]
[TimeControl "180+1"]
[EndTime "11:08:42 PST"]
[Termination "esteban062000 won on time"]

1. d4 {[%clk 0:03:00.9]} 1... Nf6 {[%clk 0:02:57.4]} 2. Nf3 {[%clk 0:03:00.8]}
2... e6 {[%clk 0:02:49]} 3. c4 {[%clk 0:03:00.1]} 3... Bb4+ {[%clk 0:02:48.7]}
4. Nbd2 {[%clk 0:02:59.6]} 4... O-O {[%clk 0:02:48.2]} 5. a3 {[%clk 0:02:59.6]}
5... Bxd2+ {[%clk 0:02:43]} 6. Bxd2 {[%clk 0:02:58.9]} 6... b6 {[%clk
0:02:42.8]} 7. Bf4 {[%clk 0:02:58.7]} 7... Bb7 {[%clk 0:02:42.9]} 8. h3 {[%clk
0:02:58.3]} 8... d6 {[%clk 0:02:43.1]} 9. e3 {[%clk 0:02:57.8]} 9... Nbd7 {[%clk
0:02:42.9]} 10. Be2 {[%clk 0:02:56.9]} 10... Re8 {[%clk 0:02:38.7]} 11. Bh2
{[%clk 0:02:54.1]} 11... e5 {[%clk 0:02:29.2]} 12. O-O {[%clk 0:02:52.9]} 12...
exd4 {[%clk 0:02:26.9]} 13. Nxd4 {[%clk 0:02:48.1]} 13... Nc5 {[%clk 0:02:07.8]}
14. Bf3 {[%clk 0:02:44.1]} 14... Bxf3 {[%clk 0:02:05.2]} 15. Qxf3 {[%clk
0:02:42.9]} 15... Qd7 {[%clk 0:02:00.7]} 16. Rad1 {[%clk 0:02:37.3]} 16... Rad8
{[%clk 0:01:41.4]} 17. Nc6 {[%clk 0:02:29.1]} 17... Ra8 {[%clk 0:01:33.6]} 18.
Nd4 {[%clk 0:02:23]} 18... Ne6 {[%clk 0:01:30.2]} 19. Nf5 {[%clk 0:02:18.1]}
19... Ng5 {[%clk 0:01:21.9]} 20. Nh6+ {[%clk 0:02:12.6]} 20... Kh8 {[%clk
0:00:37.4]} 21. Qf4 {[%clk 0:02:10.6]} 21... Ne6 {[%clk 0:00:34.6]} 22. Qh4
{[%clk 0:02:09]} 22... Nc5 {[%clk 0:00:30.7]} 23. Rd4 {[%clk 0:01:48.6]} 23...
Re4 {[%clk 0:00:22]} 24. Rxe4 {[%clk 0:01:44.4]} 24... Ncxe4 {[%clk 0:00:22.9]}
25. f3 {[%clk 0:01:34.3]} 25... Nd2 {[%clk 0:00:19.3]} 26. Rd1 {[%clk
0:01:33.9]} 26... Nb3 {[%clk 0:00:18.1]} 27. e4 {[%clk 0:01:27.1]} 27... Re8
{[%clk 0:00:17.9]} 28. e5 {[%clk 0:01:22]} 28... Ng8 {[%clk 0:00:17.9]} 29. Ng4
{[%clk 0:01:09.5]} 29... Qc6 {[%clk 0:00:14]} 30. exd6 {[%clk 0:01:02.4]} 30...
cxd6 {[%clk 0:00:14.9]} 31. Nf2 {[%clk 0:00:46.9]} 31... Ne7 {[%clk 0:00:13.8]}
32. Qf4 {[%clk 0:00:32.3]} 32... Ng6 {[%clk 0:00:12.9]} 33. Qxd6 {[%clk
0:00:29.7]} 33... Qxc4 {[%clk 0:00:12.6]} 34. Qd7 {[%clk 0:00:23.3]} 34... Rf8
{[%clk 0:00:12.5]} 35. Bd6 {[%clk 0:00:20.2]} 35... Rg8 {[%clk 0:00:12.5]} 36.
Ne4 {[%clk 0:00:18]} 36... f5 {[%clk 0:00:12]} 37. Ng5 {[%clk 0:00:16.1]} 37...
h6 {[%clk 0:00:09.5]} 38. Nf7+ {[%clk 0:00:12.8]} 38... Kh7 {[%clk 0:00:09.9]}
39. Bg3 {[%clk 0:00:11.4]} 39... Nc5 {[%clk 0:00:09.9]} 40. Qc7 {[%clk 0:00:10]}
40... Qb3 {[%clk 0:00:09.3]} 41. Re1 {[%clk 0:00:09]} 41... f4 {[%clk
0:00:09.7]} 42. Bf2 {[%clk 0:00:08.3]} 42... Nd3 {[%clk 0:00:09.7]} 43. Rf1
{[%clk 0:00:04.5]} 43... Nxf2 {[%clk 0:00:09.9]} 44. Rxf2 {[%clk 0:00:04.2]}
44... Qd1+ {[%clk 0:00:10.5]} 45. Rf1 {[%clk 0:00:04.4]} 45... Qd3 {[%clk
0:00:11.2]} 46. Ne5 {[%clk 0:00:01.5]} 46... Qe3+ {[%clk 0:00:11.6]} 0-1

[Event "*** Titled Tuesday Blitz"]
[Site "Chess.com"]
[Date "2021.02.16"]
[Round "6"]
[White "DenLaz"]
[Black "Nozdrachev_Leonid"]
[Result "1-0"]
[WhiteElo "2796"]
[BlackElo "2534"]
[TimeControl "180+1"]
[EndTime "11:08:44 PST"]
[Termination "DenLaz won by checkmate"]

1. d4 {[%clk 0:03:00.9]} 1... d6 {[%clk 0:02:59.9]} 2. c4 {[%clk 0:03:01.5]}
2... Nf6 {[%clk 0:02:58.2]} 3. Nf3 {[%clk 0:03:01.5]} 3... g6 {[%clk 0:02:56.9]}
4. g3 {[%clk 0:03:00.6]} 4... Bg7 {[%clk 0:02:55.9]} 5. Nc3 {[%clk 0:03:01]}
5... Nc6 {[%clk 0:02:55.5]} 6. Bg2 {[%clk 0:03:00.9]} 6... O-O {[%clk
0:02:54.7]} 7. O-O {[%clk 0:03:01]} 7... Bf5 {[%clk 0:02:54.4]} 8. d5 {[%clk
0:02:59]} 8... Na5 {[%clk 0:02:53.3]} 9. Nd2 {[%clk 0:02:59.4]} 9... c6 {[%clk
0:02:52.3]} 10. b4 {[%clk 0:02:58.5]} 10... Nxd5 {[%clk 0:02:50.8]} 11. cxd5
{[%clk 0:02:58.6]} 11... Bxc3 {[%clk 0:02:49.9]} 12. e4 {[%clk 0:02:59.2]} 12...
Bxa1 {[%clk 0:02:43.7]} 13. exf5 {[%clk 0:02:58.7]} 13... cxd5 {[%clk
0:02:36.8]} 14. bxa5 {[%clk 0:02:56.2]} 14... Bg7 {[%clk 0:02:27.1]} 15. fxg6
{[%clk 0:02:50.4]} 15... hxg6 {[%clk 0:02:24.4]} 16. a6 {[%clk 0:02:46.9]} 16...
e6 {[%clk 0:02:22.2]} 17. axb7 {[%clk 0:02:44.1]} 17... Rb8 {[%clk 0:02:21.6]}
18. h4 {[%clk 0:02:38.2]} 18... Rxb7 {[%clk 0:02:18.3]} 19. h5 {[%clk
0:02:37.6]} 19... gxh5 {[%clk 0:02:17.3]} 20. Qxh5 {[%clk 0:02:36.4]} 20... Qf6
{[%clk 0:02:16.6]} 21. Nf3 {[%clk 0:02:31.6]} 21... Qg6 {[%clk 0:01:49.5]} 22.
Qxg6 {[%clk 0:02:07.1]} 22... fxg6 {[%clk 0:01:48.7]} 23. Ng5 {[%clk 0:02:07.8]}
23... Re8 {[%clk 0:01:38.9]} 24. Re1 {[%clk 0:00:58.1]} 24... Rb1 {[%clk
0:01:27.5]} 25. Bxd5 {[%clk 0:00:35.4]} 25... Rxc1 {[%clk 0:01:16.3]} 26. Bxe6+
{[%clk 0:00:32.3]} 26... Rxe6 {[%clk 0:01:14.7]} 27. Rxc1 {[%clk 0:00:33.2]}
27... Re2 {[%clk 0:01:09.9]} 28. Rc8+ {[%clk 0:00:32]} 28... Bf8 {[%clk
0:01:08.7]} 29. Ra8 {[%clk 0:00:31.6]} 29... d5 {[%clk 0:00:55.7]} 30. Rxa7
{[%clk 0:00:19.2]} 30... Bc5 {[%clk 0:00:43.3]} 31. Ra8+ {[%clk 0:00:12.8]}
31... Kg7 {[%clk 0:00:42.4]} 32. Nh3 {[%clk 0:00:13.4]} 32... Kf6 {[%clk
0:00:31.6]} 33. Kf1 {[%clk 0:00:13.1]} 33... Rc2 {[%clk 0:00:28.6]} 34. a4
{[%clk 0:00:12.7]} 34... Kf5 {[%clk 0:00:25.2]} 35. Rd8 {[%clk 0:00:10.4]} 35...
d4 {[%clk 0:00:17.8]} 36. a5 {[%clk 0:00:10]} 36... Ke4 {[%clk 0:00:16.5]} 37.
Ng5+ {[%clk 0:00:09.5]} 37... Kf5 {[%clk 0:00:14.8]} 38. Nf3 {[%clk 0:00:07.9]}
38... Ke4 {[%clk 0:00:14.4]} 39. Ng5+ {[%clk 0:00:07.3]} 39... Kf5 {[%clk
0:00:14.1]} 40. Rd5+ {[%clk 0:00:08]} 40... Kg4 {[%clk 0:00:10.2]} 41. Kg2
{[%clk 0:00:08.2]} 41... d3 {[%clk 0:00:08.9]} 42. Ne4 {[%clk 0:00:08.6]} 42...
Be3 {[%clk 0:00:05.6]} 43. Rxd3 {[%clk 0:00:08]} 43... Ba7 {[%clk 0:00:03.5]}
44. Rd5 {[%clk 0:00:07.8]} 44... Be3 {[%clk 0:00:03]} 45. Nf6# {[%clk
0:00:07.9]} 1-0

[Event "*** Titled Tuesday Blitz"]
[Site "Chess.com"]
[Date "2021.02.16"]
[Round "6"]
[White "Bacyanide"]
[Black "remi04"]
[Result "0-1"]
[WhiteElo "2426"]
[BlackElo "2609"]
[TimeControl "180+1"]
[EndTime "11:08:44 PST"]
[Termination "remi04 won by resignation"]

1. d4 {[%clk 0:03:00.9]} 1... Nf6 {[%clk 0:02:59.6]} 2. c4 {[%clk 0:03:01.2]}
2... e6 {[%clk 0:02:59.7]} 3. Nc3 {[%clk 0:03:01.7]} 3... d5 {[%clk 0:02:59.9]}
4. Nf3 {[%clk 0:03:00.2]} 4... c6 {[%clk 0:02:59.8]} 5. g3 {[%clk 0:03:01.1]}
5... dxc4 {[%clk 0:02:57.5]} 6. Bg2 {[%clk 0:03:02]} 6... b5 {[%clk 0:02:54.3]}
7. O-O {[%clk 0:03:02.2]} 7... Bd6 {[%clk 0:02:50.3]} 8. e4 {[%clk 0:02:56.7]}
8... Bb4 {[%clk 0:02:48.8]} 9. e5 {[%clk 0:02:50.9]} 9... Nd5 {[%clk 0:02:48]}
10. Ne4 {[%clk 0:02:51.4]} 10... h6 {[%clk 0:02:46.5]} 11. b3 {[%clk 0:02:06.9]}
11... O-O {[%clk 0:02:36.2]} 12. bxc4 {[%clk 0:02:06.5]} 12... bxc4 {[%clk
0:02:37.1]} 13. Qc2 {[%clk 0:02:02.4]} 13... Ba6 {[%clk 0:02:34.6]} 14. Rd1
{[%clk 0:01:59.6]} 14... Nd7 {[%clk 0:02:31.9]} 15. Bd2 {[%clk 0:01:57.1]} 15...
Be7 {[%clk 0:02:30.8]} 16. Bf1 {[%clk 0:01:45.5]} 16... N7b6 {[%clk 0:02:06.2]}
17. Ba5 {[%clk 0:01:42.6]} 17... Qc8 {[%clk 0:01:58.8]} 18. Nc5 {[%clk
0:01:29.8]} 18... Bxc5 {[%clk 0:01:50.8]} 19. dxc5 {[%clk 0:01:29.6]} 19... Nd7
{[%clk 0:01:51.7]} 20. Bxc4 {[%clk 0:01:25.8]} 20... Nxc5 {[%clk 0:01:31.5]} 21.
Rac1 {[%clk 0:01:11.5]} 21... Nd7 {[%clk 0:01:18.5]} 22. Qe4 {[%clk 0:01:00]}
22... Bxc4 {[%clk 0:01:13]} 23. Qxc4 {[%clk 0:00:59.7]} 23... c5 {[%clk
0:01:13.2]} 24. Bc3 {[%clk 0:00:42.7]} 24... Qc6 {[%clk 0:01:08.5]} 25. Ba1
{[%clk 0:00:36.1]} 25... Rab8 {[%clk 0:01:05.5]} 26. Nd2 {[%clk 0:00:35.9]}
26... Rb4 {[%clk 0:01:02.8]} 27. Qe2 {[%clk 0:00:35.1]} 27... Rfb8 {[%clk
0:01:01.6]} 28. Nc4 {[%clk 0:00:29.2]} 28... Qa4 {[%clk 0:00:59.7]} 29. Nd6
{[%clk 0:00:27.5]} 29... Qa3 {[%clk 0:00:42.6]} 30. Qh5 {[%clk 0:00:26.9]} 30...
Rf8 {[%clk 0:00:39.5]} 31. Rc2 {[%clk 0:00:21.2]} 31... Qa4 {[%clk 0:00:31.6]}
32. Rcd2 {[%clk 0:00:20.5]} 32... c4 {[%clk 0:00:24.4]} 33. Rxd5 {[%clk
0:00:18.5]} 33... exd5 {[%clk 0:00:24]} 34. Nxf7 {[%clk 0:00:15.7]} 34... Rxf7
{[%clk 0:00:22.6]} 35. e6 {[%clk 0:00:16]} 35... Re7 {[%clk 0:00:22.8]} 36. exd7
{[%clk 0:00:11.2]} 36... Qxd7 {[%clk 0:00:22.9]} 37. Rxd5 {[%clk 0:00:11.4]}
37... Rb1+ {[%clk 0:00:22.1]} 38. Kg2 {[%clk 0:00:11.7]} 38... Qb7 {[%clk
0:00:22.1]} 39. Qf3 {[%clk 0:00:08.1]} 39... Rxa1 {[%clk 0:00:18.5]} 40. Rd8+
{[%clk 0:00:05.9]} 40... Kh7 {[%clk 0:00:18.7]} 41. Rd5 {[%clk 0:00:06.8]} 41...
Rae1 {[%clk 0:00:14.2]} 42. Qf5+ {[%clk 0:00:05.4]} 42... g6 {[%clk 0:00:14]}
43. Qf3 {[%clk 0:00:05]} 43... R1e5 {[%clk 0:00:13.3]} 44. Rxe5 {[%clk
0:00:03.1]} 44... Qxf3+ {[%clk 0:00:13.3]} 45. Kxf3 {[%clk 0:00:04]} 45... Rxe5
{[%clk 0:00:14]} 46. Kf4 {[%clk 0:00:04.5]} 46... Re1 {[%clk 0:00:13.8]} 47. h4
{[%clk 0:00:05.4]} 47... c3 {[%clk 0:00:14.7]} 48. Kf3 {[%clk 0:00:05.1]} 48...
c2 {[%clk 0:00:15.6]} 0-1

[Event "*** Titled Tuesday Blitz"]
[Site "Chess.com"]
[Date "2021.02.16"]
[Round "6"]
[White "muchojogo"]
[Black "AttilaTurzo"]
[Result "0-1"]
[WhiteElo "2334"]
[BlackElo "2488"]
[TimeControl "180+1"]
[EndTime "11:08:44 PST"]
[Termination "AttilaTurzo won by resignation"]

1. e4 {[%clk 0:03:00.9]} 1... c5 {[%clk 0:02:58.6]} 2. Nf3 {[%clk 0:03:01.4]}
2... Nc6 {[%clk 0:02:58.5]} 3. d4 {[%clk 0:03:01.7]} 3... cxd4 {[%clk 0:02:59]}
4. Nxd4 {[%clk 0:03:02.6]} 4... Nf6 {[%clk 0:02:59.7]} 5. Nc3 {[%clk 0:03:03.1]}
5... d6 {[%clk 0:03:00.2]} 6. Bg5 {[%clk 0:03:02.3]} 6... e6 {[%clk 0:03:00.4]}
7. Qd2 {[%clk 0:03:01.4]} 7... a6 {[%clk 0:03:01]} 8. O-O-O {[%clk 0:02:32]}
8... Bd7 {[%clk 0:03:00.5]} 9. f4 {[%clk 0:02:18.8]} 9... b5 {[%clk 0:02:59.8]}
10. Bxf6 {[%clk 0:02:05.5]} 10... gxf6 {[%clk 0:03:00.7]} 11. Kb1 {[%clk
0:02:05.7]} 11... Qb6 {[%clk 0:03:00.1]} 12. Nxc6 {[%clk 0:02:05.6]} 12... Bxc6
{[%clk 0:03:01]} 13. f5 {[%clk 0:02:05.2]} 13... Qc5 {[%clk 0:02:54.4]} 14. Bd3
{[%clk 0:02:00.5]} 14... h5 {[%clk 0:02:50.7]} 15. fxe6 {[%clk 0:01:57.2]} 15...
fxe6 {[%clk 0:02:50.2]} 16. Rhf1 {[%clk 0:01:57.6]} 16... Bh6 {[%clk 0:02:47]}
17. Qe1 {[%clk 0:01:55.5]} 17... Qe5 {[%clk 0:02:41.3]} 18. Ne2 {[%clk
0:01:54.6]} 18... O-O-O {[%clk 0:02:36]} 19. g3 {[%clk 0:01:49.9]} 19... d5
{[%clk 0:02:23.5]} 20. exd5 {[%clk 0:01:37.6]} 20... Bxd5 {[%clk 0:02:22.1]} 21.
Qa5 {[%clk 0:01:27.4]} 21... Kb7 {[%clk 0:02:18.8]} 22. Rde1 {[%clk 0:01:10.8]}
22... Qc7 {[%clk 0:01:54.6]} 23. Qxc7+ {[%clk 0:01:09]} 23... Kxc7 {[%clk
0:01:55.5]} 24. Rxf6 {[%clk 0:01:09.2]} 24... h4 {[%clk 0:01:52.2]} 25. gxh4
{[%clk 0:01:04.3]} 25... Rdf8 {[%clk 0:01:50.5]} 26. Ref1 {[%clk 0:01:04]} 26...
Rxf6 {[%clk 0:01:48.4]} 27. Rxf6 {[%clk 0:01:04.9]} 27... Be3 {[%clk 0:01:48.8]}
28. Rf7+ {[%clk 0:00:48.5]} 28... Kd6 {[%clk 0:01:46.4]} 29. Rh7 {[%clk
0:00:47]} 29... Rf8 {[%clk 0:01:24.9]} 30. Nc3 {[%clk 0:00:26.5]} 30... Bc6
{[%clk 0:01:14.3]} 31. a3 {[%clk 0:00:23.6]} 31... Bg1 {[%clk 0:01:06]} 32. Be4
{[%clk 0:00:21.7]} 32... Bxh2 {[%clk 0:01:01.2]} 33. Bxc6 {[%clk 0:00:21.3]}
33... Kxc6 {[%clk 0:01:02.1]} 34. h5 {[%clk 0:00:20.8]} 34... Be5 {[%clk
0:00:50.7]} 35. Ne4 {[%clk 0:00:19.9]} 35... Rh8 {[%clk 0:00:50.4]} 36. Ra7
{[%clk 0:00:17.5]} 36... Rxh5 {[%clk 0:00:47.7]} 37. Rxa6+ {[%clk 0:00:17.4]}
37... Kd5 {[%clk 0:00:44.9]} 38. Nd2 {[%clk 0:00:17.6]} 38... Bd4 {[%clk
0:00:43.6]} 39. Nb3 {[%clk 0:00:15.7]} 39... Be3 {[%clk 0:00:43.1]} 40. a4
{[%clk 0:00:12.2]} 40... Rh1+ {[%clk 0:00:39.9]} 41. Ka2 {[%clk 0:00:12.4]}
41... bxa4 {[%clk 0:00:40.7]} 42. Rxa4 {[%clk 0:00:13.2]} 42... e5 {[%clk
0:00:40.6]} 43. c4+ {[%clk 0:00:12.3]} 43... Ke4 {[%clk 0:00:33.5]} 44. c5+
{[%clk 0:00:11]} 44... Kd3 {[%clk 0:00:33.6]} 45. c6 {[%clk 0:00:09.5]} 45...
Rh6 {[%clk 0:00:30.4]} 46. Ra6 {[%clk 0:00:08.8]} 46... e4 {[%clk 0:00:26.1]}
47. Na5 {[%clk 0:00:07.8]} 47... Rh7 {[%clk 0:00:22.9]} 48. Rb6 {[%clk
0:00:05.2]} 48... Bxb6 {[%clk 0:00:21.9]} 0-1

[Event "*** Titled Tuesday Blitz"]
[Site "Chess.com"]
[Date "2021.02.16"]
[Round "6"]
[White "Ekose"]
[Black "bsnsun"]
[Result "0-1"]
[WhiteElo "2606"]
[BlackElo "2452"]
[TimeControl "180+1"]
[EndTime "11:08:46 PST"]
[Termination "bsnsun won by resignation"]

1. Nf3 {[%clk 0:02:49.6]} 1... d5 {[%clk 0:02:58.4]} 2. e3 {[%clk 0:02:48.1]}
2... c6 {[%clk 0:02:57.6]} 3. c4 {[%clk 0:02:47.6]} 3... Nf6 {[%clk 0:02:57.9]}
4. b3 {[%clk 0:02:47.6]} 4... Bg4 {[%clk 0:02:55.8]} 5. Bb2 {[%clk 0:02:47.9]}
5... e6 {[%clk 0:02:56.1]} 6. Be2 {[%clk 0:02:48]} 6... Nbd7 {[%clk 0:02:55.5]}
7. O-O {[%clk 0:02:48.5]} 7... Bd6 {[%clk 0:02:54.7]} 8. h3 {[%clk 0:02:46.7]}
8... Bh5 {[%clk 0:02:53.6]} 9. Nc3 {[%clk 0:02:46.4]} 9... O-O {[%clk
0:02:49.9]} 10. cxd5 {[%clk 0:02:40.8]} 10... exd5 {[%clk 0:02:46.5]} 11. Nd4
{[%clk 0:02:40.7]} 11... Bg6 {[%clk 0:02:44.1]} 12. f4 {[%clk 0:02:40]} 12... h6
{[%clk 0:02:26.7]} 13. a3 {[%clk 0:02:26.9]} 13... Qe7 {[%clk 0:02:22.8]} 14. b4
{[%clk 0:02:25.5]} 14... a6 {[%clk 0:02:22.4]} 15. Bg4 {[%clk 0:02:19.2]} 15...
Bd3 {[%clk 0:02:18.8]} 16. Nf5 {[%clk 0:02:09.4]} 16... Bxf5 {[%clk 0:02:16.6]}
17. Bxf5 {[%clk 0:02:10.3]} 17... Rfe8 {[%clk 0:02:10.3]} 18. Rc1 {[%clk
0:02:06.8]} 18... Nb6 {[%clk 0:02:09.9]} 19. Bd3 {[%clk 0:02:00.9]} 19... Nc4
{[%clk 0:02:03.4]} 20. Bxc4 {[%clk 0:01:58.6]} 20... dxc4 {[%clk 0:02:04.3]} 21.
Qe2 {[%clk 0:01:55.6]} 21... b5 {[%clk 0:02:01.4]} 22. Qf3 {[%clk 0:01:55.5]}
22... c5 {[%clk 0:01:54.2]} 23. Rce1 {[%clk 0:01:46.5]} 23... cxb4 {[%clk
0:01:50.7]} 24. axb4 {[%clk 0:01:47.4]} 24... Bxb4 {[%clk 0:01:47.9]} 25. e4
{[%clk 0:01:44.7]} 25... Bxc3 {[%clk 0:01:40.6]} 26. Qxc3 {[%clk 0:01:43.8]}
26... b4 {[%clk 0:01:19.6]} 27. Qxc4 {[%clk 0:01:41.3]} 27... Nxe4 {[%clk
0:01:19.6]} 28. Qd4 {[%clk 0:01:25]} 28... Qa7 {[%clk 0:01:00.1]} 29. Qxa7
{[%clk 0:01:01.7]} 29... Rxa7 {[%clk 0:01:01]} 30. d3 {[%clk 0:00:49.5]} 30...
Nd6 {[%clk 0:00:59.8]} 31. Rxe8+ {[%clk 0:00:43.9]} 31... Nxe8 {[%clk
0:01:00.7]} 32. Rc1 {[%clk 0:00:44.3]} 32... Ra8 {[%clk 0:00:59]} 33. d4 {[%clk
0:00:39]} 33... a5 {[%clk 0:00:56.8]} 34. d5 {[%clk 0:00:39.3]} 34... a4 {[%clk
0:00:56.4]} 35. Rc4 {[%clk 0:00:35.5]} 35... a3 {[%clk 0:00:49.9]} 36. Rxb4
{[%clk 0:00:25.2]} 36... axb2 {[%clk 0:00:49.7]} 37. Rxb2 {[%clk 0:00:25.6]}
37... Ra1+ {[%clk 0:00:49.3]} 38. Kf2 {[%clk 0:00:25.3]} 38... Rd1 {[%clk
0:00:50]} 39. Rb5 {[%clk 0:00:24.3]} 39... Nd6 {[%clk 0:00:47.9]} 40. Rb8+
{[%clk 0:00:22.5]} 40... Kh7 {[%clk 0:00:47.6]} 41. Kf3 {[%clk 0:00:20.5]} 41...
Rxd5 {[%clk 0:00:46.8]} 42. Rd8 {[%clk 0:00:19.2]} 42... f5 {[%clk 0:00:43.8]}
43. g4 {[%clk 0:00:16.7]} 43... Rd4 {[%clk 0:00:39.7]} 44. g5 {[%clk 0:00:13.7]}
44... hxg5 {[%clk 0:00:35.4]} 45. fxg5 {[%clk 0:00:14]} 45... Nb5 {[%clk
0:00:28.8]} 46. Rb8 {[%clk 0:00:13.1]} 46... Nc3 {[%clk 0:00:27.4]} 47. Kg3
{[%clk 0:00:09.9]} 47... Ne4+ {[%clk 0:00:26.4]} 48. Kf4 {[%clk 0:00:10.4]}
48... Kg6 {[%clk 0:00:22.7]} 49. h4 {[%clk 0:00:07.8]} 49... Nxg5+ {[%clk
0:00:20.5]} 50. Kg3 {[%clk 0:00:06.5]} 50... Rg4+ {[%clk 0:00:20.4]} 51. Kf2
{[%clk 0:00:07]} 51... Rxh4 {[%clk 0:00:20.6]} 0-1